[Event "RUS-ch Men Rapid 2019"]
[Site "Sochi"]
[Date "2019.10.15"]
[Round "5.23"]
[White "Sysolyatin, Evgeny"]
[Black "Kabanov, Nikolai"]
[Result "1/2-1/2"]
[ECO "B40"]
[WhiteElo "2271"]
[BlackElo "2455"]
[Annotator "ChessBase"]
[PlyCount "90"]
[EventDate "2019.10.15"]
[EventType "swiss"]
[EventCountry "RUS"]
[SourceTitle "playchess.com"]
[Source "ChessBase"]
[SourceQuality "1"]
[TimeControl "900+10"]

1. e4 {[%emt 0:00:00]} c5 {[%emt 0:00:00]} 2. Nf3 {[%emt 0:00:00]} e6 {[%emt 0:00:00]} 3. g3 {[%emt 0:00:18]} Nc6 {[%emt 0:00:50]} 4. Bg2 {[%emt 0:00:02]} d6 {[%emt 0:00:04]} 5. O-O {[%emt 0:00:04]} Nf6 {[%emt 0:00:08]} 6. Qe2 {[%emt 0:00:02]} Be7 {[%emt 0:00:09]} 7. Rd1 {[%emt 0:00:01]} e5 {[%emt 0:00:04]} 8. c3 {[%emt 0:00:21]} O-O {[%emt 0:00:03]} 9. d4 {[%emt 0:01:34]} cxd4 {[%emt 0:00:35]} 10. cxd4 {[%emt 0:00:01]} exd4 {[%emt 0:00:16]} 11. Nxd4 {[%emt 0:00:11]} Bg4 {[%emt 0:00:09]} 12. Nf3 {[%emt 0:00:25]} Qc8 {[%emt 0:00:59]} 13. Nc3 {[%emt 0:00:24]} Re8 {[%emt 0:00:18]} 14. Bf4 {[%emt 0:01:30]} Qe6 {[%emt 0:03:01]} 15. Qb5 {[%emt 0:01:07]} Rab8 {[%emt 0:01:51]} 16. Rd2 {[%emt 0:05:43]} a6 {[%emt 0:01:33]} 17. Qf1 {[%emt 0:00:46]} h6 {[%emt 0:00:56]} 18. Re1 {[%emt 0:01:02]} Bf8 {[%emt 0:00:46]} 19. h3 {[%emt 0:00:51]} Bxf3 {[%emt 0:00:03]} 20. Bxf3 {[%emt 0:00:02]} Ne5 {[%emt 0:00:14]} 21. Bg2 {[%emt 0:00:08]} Rbc8 {[%emt 0:00:31]} 22. Rc2 {[%emt 0:01:33]} Nc4 {[%emt 0:00:37]} 23. b3 {[%emt 0:00:48]} Ne5 {[%emt 0:00:45]} 24. Rec1 {[%emt 0:00:03]} Nc6 {[%emt 0:01:30]} 25. Qd1 {[%emt 0:00:23]} g5 {[%emt 0:00:54]} 26. Be3 {[%emt 0:00:05]} Bg7 {[%emt 0:00:21]} 27. Rd2 {[%emt 0:00:10]} Red8 {[%emt 0:00:12]} 28. Bb6 {[%emt 0:00:07]} Rd7 {[%emt 0:00:04]} 29. Re2 {[%emt 0:00:25]} Re8 {[%emt 0:00:25]} 30. Re3 {[%emt 0:01:13]} Ne5 {[%emt 0:01:14]} 31. Nd5 {[%emt 0:00:12]} Nxd5 {[%emt 0:00:07]} 32. exd5 {[%emt 0:00:02]} Qf6 {[%emt 0:00:09]} 33. Rec3 {[%emt 0:00:11]} Rde7 {[%emt 0:00:10]} 34. Rc8 {[%emt 0:00:02]} Qf5 {[%emt 0:00:22]} 35. Rxe8+ {[%emt 0:00:05]} Rxe8 {[%emt 0:00:01]} 36. Be3 {[%emt 0:00:18]} Nd3 {[%emt 0:00:38]} 37. Rc7 {[%emt 0:00:24]} Rxe3 {[%emt 0:00:22]} 38. fxe3 {[%emt 0:00:06]} Qf2+ {[%emt 0:00:02]} 39. Kh1 {[%emt 0:00:07]} Ne1 {[%emt 0:00:37]} 40. Rc8+ {[%emt 0:00:22]} Kh7 {[%emt 0:00:03]} 41. Be4+ {[%emt 0:00:18]} f5 {[%emt 0:00:02]} 42. Rc1 {[%emt 0:00:05]} Qf1+ {[%emt 0:00:37]} 43. Kh2 {[%emt 0:00:02]} Qf2+ {[%emt 0:00:01]} 44. Kh1 {[%emt 0:00:01]} Qf1+ 45. Kh2 Qf2+ {[%emt 0:00:32]} 1/2-1/2

[Event "RUS-ch Men Rapid 2019"]
[Site "Sochi"]
[Date "2019.10.15"]
[Round "5.24"]
[White "Litvinov, Anton"]
[Black "Apryshko, Gleb"]
[Result "0-1"]
[ECO "A42"]
[WhiteElo "2010"]
[BlackElo "2382"]
[Annotator "NA"]
[PlyCount "40"]
[EventDate "2019.10.15"]
[EventType "swiss"]
[EventCountry "RUS"]
[SourceTitle "playchess.com"]
[Source "ChessBase"]
[SourceQuality "1"]
[TimeControl "900+10"]

1. d4 {[%emt 0:00:00]} g6 {[%emt 0:00:00]} 2. c4 {[%emt 0:00:00]} Bg7 {[%emt 0:00:00]} 3. Nc3 {[%emt 0:00:00]} d6 {[%emt 0:01:44]} 4. e4 {[%emt 0:00:00]} Nd7 {[%emt 0:00:06]} 5. Be2 {[%emt 0:00:25]} e6 {[%emt 0:00:02]} 6. h4 {[%emt 0:01:03]} h6 {[%emt 0:00:08]} 7. Be3 {[%emt 0:00:47]} Ne7 {[%emt 0:00:03]} 8. Qd2 {[%emt 0:01:05]} f5 {[%emt 0:01:54]} 9. Nh3 {[%emt 0:04:12]} e5 {[%emt 0:00:08]} 10. f4 {[%emt 0:00:49]} fxe4 {[%emt 0:00:38]} 11. fxe5 {[%emt 0:02:13]} dxe5 {[%emt 0:00:08]} 12. dxe5 {[%emt 0:01:34]} Nf5 {[%emt 0:01:37]} 13. Nxe4 {[%emt 0:03:08]} Qxh4+ {[%emt 0:00:40]} 14. Nhf2 {[%emt 0:00:27]} Qe7 {[%emt 0:00:01]} 15. Ng4 {[%emt 0:01:01]} Nxe3 {[%emt 0:00:30]} 16. Qxe3 {[%emt 0:00:20]} Nxe5 {[%emt 0:00:03]} 17. Nxe5 Qxe5 {[%emt 0:00:04]} 18. Qc3 {[%emt 0:00:27]} Bf5 {[%emt 0:00:13]} 19. Bf3 {[%emt 0:00:24]} Qxe4+ {[%emt 0:00:08]} 20. Bxe4 {[%emt 0:00:05]} Bxc3+ {[%emt 0:00:02]} 0-1

[Event "RUS-ch Men Rapid 2019"]
[Site "Sochi"]
[Date "2019.10.15"]
[Round "5.25"]
[White "Zakaryan, David"]
[Black "Nuristani, Iman"]
[Result "1-0"]
[ECO "A59"]
[WhiteElo "2338"]
[BlackElo "2171"]
[Annotator "NA"]
[PlyCount "51"]
[EventDate "2019.10.15"]
[EventType "swiss"]
[EventCountry "RUS"]
[SourceTitle "playchess.com"]
[Source "ChessBase"]
[SourceQuality "1"]
[TimeControl "900+10"]

1. d4 {[%emt 0:00:00]} Nf6 {[%emt 0:00:00]} 2. c4 {[%emt 0:00:00]} c5 {[%emt 0:00:00]} 3. d5 {[%emt 0:00:00]} b5 {[%emt 0:00:00]} 4. cxb5 {[%emt 0:00:00]} a6 {[%emt 0:00:00]} 5. bxa6 {[%emt 0:00:00]} Bxa6 {[%emt 0:00:01]} 6. Nc3 {[%emt 0:00:00]} g6 {[%emt 0:00:01]} 7. e4 {[%emt 0:00:06]} Bxf1 {[%emt 0:00:02]} 8. Kxf1 {[%emt 0:00:01]} d6 {[%emt 0:00:02]} 9. g3 {[%emt 0:00:05]} Bg7 {[%emt 0:00:01]} 10. Kg2 {[%emt 0:00:02]} O-O {[%emt 0:00:03]} 11. Nf3 {[%emt 0:00:03]} Nbd7 {[%emt 0:00:01]} 12. h3 {[%emt 0:00:08]} Qa5 {[%emt 0:00:05]} 13. Re1 {[%emt 0:00:05]} Rfb8 {[%emt 0:03:43]} 14. e5 {[%emt 0:00:13]} dxe5 {[%emt 0:03:27]} 15. Nxe5 {[%emt 0:00:02]} Nxe5 {[%emt 0:00:02]} 16. Rxe5 {[%emt 0:00:02]} Rb7 {[%emt 0:01:24]} 17. Qe2 {[%emt 0:00:02]} Raa7 {[%emt 0:02:09]} 18. a4 {[%emt 0:01:01]} Ne8 {[%emt 0:00:13]} 19. Re3 {[%emt 0:00:12]} Nd6 {[%emt 0:00:01]} 20. Ra3 {[%emt 0:00:49]} Nf5 {[%emt 0:00:20]} 21. Nb5 {[%emt 0:00:26]} Nxe3+ {[%emt 0:03:45]} 22. Bxe3 {[%emt 0:00:05]} Bxb2 {[%emt 0:00:08]} 23. Qxb2 {[%emt 0:05:18]} Rxb5 {[%emt 0:00:01]} 24. axb5 {[%emt 0:00:58]} Qxa3 {[%emt 0:00:05]} 25. Qe5 {[%emt 0:01:13]} Rb7 {[%emt 0:02:10]} 26. Bh6 {[%emt 0:00:06]} 1-0

[Event "RUS-ch Men Rapid 2019"]
[Site "Sochi"]
[Date "2019.10.15"]
[Round "5.26"]
[White "Gutenev, Alexander"]
[Black "Tenikashvili, Georgij"]
[Result "1-0"]
[ECO "B19"]
[WhiteElo "2539"]
[BlackElo "2337"]
[Annotator "RC"]
[PlyCount "99"]
[EventDate "2019.10.15"]
[EventType "swiss"]
[EventCountry "RUS"]
[SourceTitle "playchess.com"]
[Source "ChessBase"]
[SourceQuality "1"]
[TimeControl "900+10"]

1. e4 c6 2. d4 d5 3. Nd2 dxe4 4. Nxe4 Bf5 5. Ng3 Bg6 6. Nf3 Nd7 7. h4 h6 8. h5 Bh7 9. Bd3 Bxd3 10. Qxd3 e6 11. Bd2 Ngf6 12. O-O-O Be7 13. Kb1 O-O 14. Ne4 Nxe4 15. Qxe4 Nf6 16. Qe2 Qd5 17. Ne5 Qe4 18. Qxe4 Nxe4 19. Be1 Rfd8 20. f3 Nf6 21. c4 Nd7 22. Ba5 Nb6 23. b3 Rdc8 24. Rhe1 Bf6 25. Bxb6 axb6 26. Nd7 Ra6 27. d5 cxd5 28. Nxf6+ gxf6 29. cxd5 e5 30. f4 exf4 31. Re7 Rd8 32. d6 b5 33. Rxb7 Raxd6 34. Rxd6 Rxd6 35. Rxb5 Rd1+ 36. Kc2 Rg1 37. a4 Rxg2+ 38. Kd3 Rb2 39. Ke4 Kg7 40. a5 f5+ 41. Kxf4 Rf2+ 42. Kg3 Rb2 43. Rb6 Kf8 44. Rb7 Kg7 45. Rb6 Kf8 46. b4 Ke7 47. a6 Kd7 48. b5 Rb4 49. a7 Ra4 50. Ra6 1-0

[Event "RUS-ch Men Rapid 2019"]
[Site "Sochi"]
[Date "2019.10.15"]
[Round "5.28"]
[White "Ozgibcev, Anatoly"]
[Black "Moiseenko, Vadim"]
[Result "0-1"]
[ECO "C55"]
[WhiteElo "2367"]
[BlackElo "2595"]
[Annotator "ChessBase"]
[PlyCount "134"]
[EventDate "2019.10.15"]
[EventType "swiss"]
[EventCountry "RUS"]
[SourceTitle "playchess.com"]
[Source "ChessBase"]
[SourceQuality "1"]
[TimeControl "900+10"]

1. e4 {[%emt 0:00:00]} e5 {[%emt 0:00:00]} 2. Nf3 {[%emt 0:00:00]} Nc6 {[%emt 0:00:00]} 3. Bc4 {[%emt 0:00:00]} Nf6 {[%emt 0:00:00]} 4. d4 {[%emt 0:00:04]} exd4 {[%emt 0:00:00]} 5. O-O {[%emt 0:00:11]} Bc5 {[%emt 0:00:21]} 6. c3 {[%emt 0:00:32]} Nxe4 {[%emt 0:00:57]} 7. cxd4 {[%emt 0:00:07]} d5 {[%emt 0:00:00]} 8. dxc5 {[%emt 0:00:08]} dxc4 {[%emt 0:00:02]} 9. Qe2 {[%emt 0:00:08]} Qd3 {[%emt 0:00:01]} 10. Re1 {[%emt 0:00:32]} f5 {[%emt 0:01:06]} 11. Nc3 {[%emt 0:00:14]} O-O {[%emt 0:00:02]} 12. Nxe4 {[%emt 0:00:09]} fxe4 {[%emt 0:00:08]} 13. Qxe4 {[%emt 0:00:16]} Bf5 {[%emt 0:00:04]} 14. Qxd3 {[%emt 0:00:02]} cxd3 {[%emt 0:00:14]} 15. Bd2 {[%emt 0:00:17]} Rad8 {[%emt 0:00:07]} 16. b4 {[%emt 0:03:37]} Rd5 {[%emt 0:00:28]} 17. Rac1 {[%emt 0:00:50]} Bg4 {[%emt 0:00:20]} 18. b5 {[%emt 0:00:11]} Nd8 {[%emt 0:00:01]} 19. Ne5 {[%emt 0:00:23]} Be2 {[%emt 0:00:02]} 20. Nc4 {[%emt 0:00:57]} Rxc5 {[%emt 0:00:16]} 21. Na5 {[%emt 0:02:38]} Rxb5 {[%emt 0:00:56]} 22. Rxc7 {[%emt 0:00:11]} Ne6 {[%emt 0:00:51]} 23. Rxb7 {[%emt 0:00:39]} Rxb7 {[%emt 0:00:07]} 24. Nxb7 {[%emt 0:00:02]} Rb8 {[%emt 0:00:07]} 25. Na5 {[%emt 0:01:09]} Rb2 {[%emt 0:00:31]} 26. Nb3 {[%emt 0:01:50]} Rxa2 {[%emt 0:00:12]} 27. Rb1 {[%emt 0:01:37]} h6 {[%emt 0:00:06]} 28. f3 {[%emt 0:00:07]} a5 {[%emt 0:02:02]} 29. Bxa5 {[%emt 0:00:38]} Rxa5 {[%emt 0:00:03]} 30. Nxa5 {[%emt 0:00:05]} d2 {[%emt 0:00:01]} 31. Kf2 {[%emt 0:00:14]} d1=Q {[%emt 0:00:03]} 32. Rxd1 {[%emt 0:00:01]} Bxd1 {[%emt 0:00:01]} 33. Nc4 {[%emt 0:00:05]} Bb3 {[%emt 0:00:11]} 34. Nd2 {[%emt 0:00:10]} Bd5 {[%emt 0:00:02]} 35. Nb1 {[%emt 0:00:01]} Kf7 {[%emt 0:00:01]} 36. Nc3 {[%emt 0:00:01]} Bc6 {[%emt 0:00:01]} 37. Ke3 {[%emt 0:00:04]} Kf6 {[%emt 0:00:01]} 38. Ne2 {[%emt 0:00:03]} Ke5 {[%emt 0:00:01]} 39. Nc1 {[%emt 0:00:01]} Nf4 {[%emt 0:00:07]} 40. g3 {[%emt 0:00:09]} Nd5+ {[%emt 0:00:07]} 41. Kd2 {[%emt 0:00:11]} Ne7 {[%emt 0:00:13]} 42. Nd3+ {[%emt 0:00:23]} Kd4 {[%emt 0:00:03]} 43. Nf4 {[%emt 0:00:01]} Ke5 {[%emt 0:00:39]} 44. Nd3+ {[%emt 0:00:15]} Kf6 {[%emt 0:00:01]} 45. Ke3 {[%emt 0:00:37]} Nf5+ {[%emt 0:00:08]} 46. Kf2 {[%emt 0:00:01]} Nd4 {[%emt 0:00:02]} 47. f4 {[%emt 0:00:11]} Kf5 {[%emt 0:00:50]} 48. Ke3 {[%emt 0:00:12]} Nc2+ {[%emt 0:00:12]} 49. Kd2 {[%emt 0:00:02]} Na3 {[%emt 0:00:02]} 50. Ne5 {[%emt 0:00:08]} Bd5 {[%emt 0:00:02]} 51. Ke2 {[%emt 0:00:18]} Nc4 {[%emt 0:00:09]} 52. Nd3 {[%emt 0:00:05]} Nd6 {[%emt 0:00:41]} 53. Ke3 {[%emt 0:00:27]} Ne4 {[%emt 0:00:24]} 54. Ne5 {[%emt 0:00:19]} Nf6 {[%emt 0:00:10]} 55. h3 {[%emt 0:00:14]} h5 {[%emt 0:00:38]} 56. Nd3 {[%emt 0:01:06]} Ne4 {[%emt 0:00:16]} 57. g4+ {[%emt 0:00:47]} hxg4 {[%emt 0:00:02]} 58. hxg4+ {[%emt 0:00:02]} Kxg4 {[%emt 0:00:00]} 59. Ne5+ {[%emt 0:00:16]} Kf5 {[%emt 0:00:02]} 60. Nf3 {[%emt 0:00:03]} Nf6 {[%emt 0:00:10]} 61. Nh4+ {[%emt 0:00:18]} Ke6 {[%emt 0:00:12]} 62. Kd4 {[%emt 0:00:22]} Bb7 {[%emt 0:00:08]} 63. Ke3 {[%emt 0:00:20]} Nd5+ {[%emt 0:00:09]} 64. Ke4 {[%emt 0:00:11]} Kf6 {[%emt 0:00:03]} 65. Kf3 {[%emt 0:00:07]} Ne7+ {[%emt 0:00:21]} 66. Kg4 {[%emt 0:00:06]} Ng6 {[%emt 0:00:03]} 67. Nf5 {[%emt 0:00:18]} Bf3+ {[%emt 0:00:07]} 0-1

[Event "RUS-ch Men Rapid 2019"]
[Site "Sochi"]
[Date "2019.10.15"]
[Round "5.29"]
[White "Yeritsyan, Aram"]
[Black "Nozdrachev, Vladislav"]
[Result "0-1"]
[ECO "C24"]
[WhiteElo "2271"]
[BlackElo "2560"]
[Annotator "ChessBase"]
[PlyCount "84"]
[EventDate "2019.10.15"]
[EventType "swiss"]
[EventCountry "RUS"]
[SourceTitle "playchess.com"]
[Source "ChessBase"]
[SourceQuality "1"]
[TimeControl "900+10"]

1. e4 {[%emt 0:00:00]} e5 {[%emt 0:00:00]} 2. Bc4 {[%emt 0:00:00]} Nf6 {[%emt 0:00:00]} 3. d3 {[%emt 0:00:00]} Nc6 {[%emt 0:00:00]} 4. Nc3 {[%emt 0:00:00]} Na5 {[%emt 0:00:00]} 5. Qf3 {[%emt 0:00:00]} Bb4 {[%emt 0:00:20]} 6. Nge2 {[%emt 0:00:04]} O-O {[%emt 0:00:08]} 7. Bg5 {[%emt 0:01:22]} Be7 {[%emt 0:00:55]} 8. h3 {[%emt 0:00:19]} d6 {[%emt 0:00:15]} 9. O-O {[%emt 0:00:32]} c6 {[%emt 0:00:21]} 10. a4 {[%emt 0:00:23]} Nxc4 {[%emt 0:00:02]} 11. dxc4 {[%emt 0:00:02]} Be6 {[%emt 0:00:02]} 12. b3 {[%emt 0:00:44]} Nd7 {[%emt 0:00:06]} 13. Bxe7 {[%emt 0:00:27]} Qxe7 {[%emt 0:00:01]} 14. Ng3 {[%emt 0:00:02]} g6 {[%emt 0:00:05]} 15. Qe3 {[%emt 0:00:29]} h5 {[%emt 0:01:08]} 16. Rad1 {[%emt 0:02:21]} Rfd8 {[%emt 0:02:01]} 17. Rd2 {[%emt 0:02:26]} h4 {[%emt 0:01:33]} 18. Nge2 {[%emt 0:00:03]} g5 {[%emt 0:00:01]} 19. Rfd1 {[%emt 0:01:40]} Nf8 {[%emt 0:00:04]} 20. c5 {[%emt 0:00:55]} dxc5 {[%emt 0:00:04]} 21. Rxd8 {[%emt 0:00:04]} Rxd8 {[%emt 0:00:01]} 22. Rxd8 {[%emt 0:00:02]} Qxd8 {[%emt 0:00:01]} 23. Qxc5 {[%emt 0:00:00]} Ng6 {[%emt 0:01:03]} 24. Qe3 {[%emt 0:03:28]} a5 {[%emt 0:00:24]} 25. f3 {[%emt 0:00:39]} b6 {[%emt 0:01:41]} 26. Kf1 {[%emt 0:00:23]} Kg7 {[%emt 0:00:06]} 27. Ke1 {[%emt 0:00:03]} f6 {[%emt 0:00:23]} 28. Qd2 {[%emt 0:00:14]} Qe7 {[%emt 0:00:07]} 29. Nd1 {[%emt 0:00:12]} Qc5 {[%emt 0:01:44]} 30. Qc3 {[%emt 0:00:06]} Qxc3+ {[%emt 0:00:14]} 31. Ndxc3 {[%emt 0:00:18]} Kf7 {[%emt 0:00:04]} 32. Kd2 {[%emt 0:00:01]} Ke7 {[%emt 0:00:01]} 33. Nd1 {[%emt 0:00:09]} Kd6 {[%emt 0:00:17]} 34. Ne3 {[%emt 0:00:03]} b5 {[%emt 0:00:06]} 35. Ng4 {[%emt 0:01:08]} Bxg4 {[%emt 0:00:20]} 36. hxg4 {[%emt 0:00:01]} bxa4 {[%emt 0:00:01]} 37. bxa4 {[%emt 0:00:01]} Kc5 {[%emt 0:00:01]} 38. Kc3 {[%emt 0:00:01]} Nf4 {[%emt 0:00:01]} 39. Nxf4 {[%emt 0:01:01]} gxf4 {[%emt 0:00:02]} 40. Kd2 {[%emt 0:00:43]} Kb4 {[%emt 0:00:13]} 41. Kd3 {[%emt 0:00:01]} c5 {[%emt 0:00:06]} 42. c3+ {[%emt 0:00:04]} Kb3 {[%emt 0:00:01]} 0-1

[Event "RUS-ch Men Rapid 2019"]
[Site "Sochi"]
[Date "2019.10.15"]
[Round "5.30"]
[White "Zakhartsov, Vladimir"]
[Black "Chekletsov, Ilya"]
[Result "1-0"]
[ECO "E20"]
[WhiteElo "2527"]
[BlackElo "2377"]
[Annotator "ChessBase"]
[PlyCount "81"]
[EventDate "2019.10.15"]
[EventType "swiss"]
[EventCountry "RUS"]
[SourceTitle "playchess.com"]
[Source "ChessBase"]
[SourceQuality "1"]
[TimeControl "900+10"]

1. d4 {[%emt 0:00:00]} Nf6 {[%emt 0:00:00]} 2. c4 {[%emt 0:00:00]} e6 {[%emt 0:00:00]} 3. Nc3 {[%emt 0:00:00]} Bb4 {[%emt 0:00:00]} 4. Bd2 {[%emt 0:00:00]} b6 {[%emt 0:00:38]} 5. e3 {[%emt 0:00:00]} Bb7 {[%emt 0:00:02]} 6. Nf3 {[%emt 0:00:00]} O-O {[%emt 0:00:09]} 7. Bd3 {[%emt 0:00:00]} Bxc3 {[%emt 0:00:02]} 8. Bxc3 {[%emt 0:00:07]} Ne4 {[%emt 0:00:02]} 9. Rc1 {[%emt 0:00:32]} d6 {[%emt 0:00:50]} 10. O-O {[%emt 0:00:11]} Nd7 {[%emt 0:00:16]} 11. Bb4 {[%emt 0:00:12]} a5 {[%emt 0:01:18]} 12. Ba3 {[%emt 0:00:14]} f5 {[%emt 0:00:11]} 13. Nd2 {[%emt 0:00:14]} Nxd2 {[%emt 0:00:42]} 14. Qxd2 {[%emt 0:00:01]} Qh4 {[%emt 0:00:21]} 15. f3 {[%emt 0:00:16]} f4 {[%emt 0:00:20]} 16. c5 {[%emt 0:01:33]} bxc5 {[%emt 0:01:27]} 17. dxc5 {[%emt 0:00:02]} Ne5 {[%emt 0:03:00]} 18. cxd6 {[%emt 0:00:04]} Nxd3 {[%emt 0:00:42]} 19. Qxd3 {[%emt 0:00:07]} Ba6 {[%emt 0:00:01]} 20. Qe4 {[%emt 0:00:09]} Bxf1 {[%emt 0:00:18]} 21. dxc7 {[%emt 0:00:22]} Rfc8 {[%emt 0:00:18]} 22. Rxf1 {[%emt 0:00:58]} Qf6 {[%emt 0:00:06]} 23. exf4 {[%emt 0:00:17]} Ra7 {[%emt 0:01:00]} 24. Bd6 {[%emt 0:00:05]} Raxc7 {[%emt 0:00:02]} 25. Bxc7 {[%emt 0:00:07]} Rxc7 {[%emt 0:00:01]} 26. Qa8+ {[%emt 0:00:14]} Kf7 {[%emt 0:00:03]} 27. Qxa5 {[%emt 0:00:07]} Qd4+ {[%emt 0:00:04]} 28. Kh1 {[%emt 0:00:14]} Rc2 {[%emt 0:00:21]} 29. f5 {[%emt 0:00:22]} e5 {[%emt 0:00:21]} 30. h3 {[%emt 0:00:24]} Qxb2 {[%emt 0:00:40]} 31. Qd5+ {[%emt 0:00:08]} Kf6 {[%emt 0:00:10]} 32. Qe6+ {[%emt 0:01:03]} Kg5 {[%emt 0:00:02]} 33. Qe7+ {[%emt 0:01:05]} Kxf5 {[%emt 0:00:10]} 34. Qf7+ {[%emt 0:00:06]} Kg5 {[%emt 0:00:01]} 35. Qxg7+ {[%emt 0:00:20]} Kf5 {[%emt 0:00:01]} 36. Qf7+ {[%emt 0:01:02]} Kg5 {[%emt 0:00:03]} 37. f4+ {[%emt 0:00:21]} exf4 {[%emt 0:00:12]} 38. Qxf4+ {[%emt 0:00:02]} Kg6 {[%emt 0:00:07]} 39. Qf7+ {[%emt 0:00:04]} Kh6 {[%emt 0:00:54]} 40. Rf6+ {[%emt 0:00:03]} Kg5 {[%emt 0:00:02]} 41. Rf5+ {[%emt 0:00:02]} 1-0

[Event "RUS-ch Men Rapid 2019"]
[Site "Sochi"]
[Date "2019.10.15"]
[Round "5.31"]
[White "Lugovskoy, Maxim"]
[Black "Usmanov, Ilnur"]
[Result "1/2-1/2"]
[ECO "B15"]
[WhiteElo "2508"]
[BlackElo "2144"]
[Annotator "ChessBase"]
[PlyCount "43"]
[EventDate "2019.10.15"]
[EventType "swiss"]
[EventCountry "RUS"]
[SourceTitle "playchess.com"]
[Source "ChessBase"]
[SourceQuality "1"]
[TimeControl "900+10"]

1. e4 c6 2. d4 d5 3. Nc3 dxe4 4. Nxe4 Nf6 5. Ng3 e5 6. Qe2 Qxd4 7. Nf3 Qb6 8. Qxe5+ Be7 9. Be3 Nbd7 10. Qxe7+ Kxe7 11. Nf5+ Kf8 12. Bxb6 Nxb6 13. Nd6 Ne8 14. Nxc8 Rxc8 15. O-O-O f6 16. g3 Nc7 17. Nd4 g6 18. h4 Kf7 19. h5 Rcd8 20. c3 Ne6 21. Nxe6 Kxe6 {[%emt 0:11:04]} 22. Bd3 {[%emt 0:06:03]} 1/2-1/2

[Event "RUS-ch Men Rapid 2019"]
[Site "Sochi"]
[Date "2019.10.15"]
[Round "5.32"]
[White "Chos, Alexey"]
[Black "Smagin, Sergey"]
[Result "1-0"]
[ECO "C92"]
[WhiteElo "2296"]
[BlackElo "2551"]
[Annotator "ChessBase"]
[PlyCount "82"]
[EventDate "2019.10.15"]
[EventType "swiss"]
[EventCountry "RUS"]
[SourceTitle "playchess.com"]
[Source "ChessBase"]
[SourceQuality "1"]
[TimeControl "900+10"]

1. e4 e5 2. Nf3 Nc6 3. Bb5 a6 4. Ba4 Nf6 5. O-O Be7 6. Re1 b5 7. Bb3 d6 8. c3 O-O 9. h3 Nd7 10. d4 Bf6 11. Be3 Na5 12. Bc2 Nc4 13. Bc1 c5 14. d5 Ncb6 15. Nbd2 c4 16. Nf1 Nc5 17. Ne3 Be7 18. g4 g6 19. Kh2 Nbd7 20. Rg1 Nf6 21. Nd2 Kh8 22. b4 cxb3 23. axb3 Bd7 24. b4 Na4 25. Bxa4 bxa4 26. c4 Qb6 27. Rb1 Qd4 28. Qc2 Rfc8 29. Bb2 Qb6 30. c5 Qxb4 31. c6 Qb5 32. g5 Nh5 33. Bxe5+ dxe5 34. Rxb5 axb5 35. Qb2 Bd6 36. cxd7 Rcb8 37. Rc1 Nf4 38. Rc6 a3 39. Qa1 Bf8 40. Qxe5+ Bg7 41. Qxb8+ Bf8 1-0

[Event "RUS-ch Men Rapid 2019"]
[Site "Sochi"]
[Date "2019.10.16"]
[Round "6.2"]
[White "Lysyj, Igor"]
[Black "Tsydypov, Zhamsaran"]
[Result "1/2-1/2"]
[ECO "D10"]
[WhiteElo "2596"]
[BlackElo "2553"]
[Annotator "ChessBase"]
[PlyCount "71"]
[EventDate "2019.10.15"]
[EventType "swiss"]
[EventCountry "RUS"]
[SourceTitle "playchess.com"]
[Source "ChessBase"]
[SourceQuality "1"]
[TimeControl "900+10"]

1. d4 {[%emt 0:00:00]} d5 {[%emt 0:00:15]} 2. c4 {[%emt 0:00:00]} c6 {[%emt 0:00:06]} 3. cxd5 {[%emt 0:00:00]} cxd5 {[%emt 0:00:03]} 4. Bf4 {[%emt 0:00:00]} Nc6 {[%emt 0:00:05]} 5. e3 {[%emt 0:00:00]} Nf6 {[%emt 0:00:21]} 6. Nc3 {[%emt 0:00:01]} a6 {[%emt 0:00:02]} 7. Rc1 {[%emt 0:00:11]} Bg4 {[%emt 0:02:23]} 8. f3 {[%emt 0:00:14]} Bd7 {[%emt 0:00:06]} 9. g4 {[%emt 0:00:10]} e6 {[%emt 0:00:14]} 10. Bd3 {[%emt 0:00:31]} Qb6 {[%emt 0:00:46]} 11. Nge2 {[%emt 0:01:12]} Rc8 {[%emt 0:00:29]} 12. Kf2 {[%emt 0:01:02]} Qxb2 {[%emt 0:03:07]} 13. Rb1 {[%emt 0:02:21]} Qa3 {[%emt 0:00:02]} 14. Rb3 {[%emt 0:00:02]} Qa5 {[%emt 0:00:04]} 15. Rxb7 {[%emt 0:00:01]} Nb4 {[%emt 0:00:01]} 16. Bb1 {[%emt 0:00:19]} Bc6 {[%emt 0:00:05]} 17. Rb8 {[%emt 0:00:09]} Rxb8 {[%emt 0:00:08]} 18. Bxb8 {[%emt 0:00:02]} Be7 {[%emt 0:00:21]} 19. Bf4 {[%emt 0:01:04]} Nd7 {[%emt 0:01:11]} 20. Qb3 {[%emt 0:00:30]} Ba8 {[%emt 0:00:50]} 21. Rc1 {[%emt 0:02:18]} O-O {[%emt 0:00:31]} 22. Nd1 {[%emt 0:00:50]} Qb6 {[%emt 0:01:39]} 23. Nb2 {[%emt 0:01:11]} e5 {[%emt 0:00:54]} 24. Na4 {[%emt 0:00:54]} Qb8 {[%emt 0:02:08]} 25. dxe5 {[%emt 0:00:34]} Nxe5 {[%emt 0:00:02]} 26. Kg2 {[%emt 0:01:45]} Bd6 {[%emt 0:01:00]} 27. Nd4 {[%emt 0:00:35]} Nc4 {[%emt 0:00:11]} 28. Bxd6 {[%emt 0:00:35]} Qxd6 {[%emt 0:00:01]} 29. Nf5 {[%emt 0:00:08]} Qb8 {[%emt 0:00:03]} 30. Qc3 {[%emt 0:00:36]} f6 {[%emt 0:00:02]} 31. Qd4 {[%emt 0:00:31]} g6 {[%emt 0:00:50]} 32. Ng3 {[%emt 0:01:18]} Qe8 {[%emt 0:00:56]} 33. Nc5 {[%emt 0:00:22]} Qf7 {[%emt 0:00:11]} 34. Bd3 {[%emt 0:00:24]} Nc6 {[%emt 0:00:08]} 35. Qxc4 {[%emt 0:00:03]} dxc4 {[%emt 0:00:16]} 36. Bxc4 {[%emt 0:00:01]} 1/2-1/2